fUSD/lending_fUSD_20260607
["ID","MTS","AMOUNT","RATE_DAILY","PERIOD"]
[424320798,1780768268000,-926.031354,0.0003013,7]
[424320795,1780768268000,-333.170844,0.0003013,7]
[424320779,1780768268000,-433.109753,0.0003013,7]
[424320791,1780768268000,-1323.30755,0.0003013,7]
[424320801,1780768268000,-2532.201305,0.0003013,7]
[424320792,1780768268000,-1323.30755,0.0003013,7]
[424320796,1780768268000,-926.031354,0.0003013,7]
[424320799,1780768268000,-926.031354,0.0003013,7]
[424320793,1780768268000,-333.170844,0.0003013,7]
[424320794,1780768268000,-333.170844,0.0003013,7]
[424320797,1780768268000,-333.170844,0.0003013,7]
[424320802,1780768268000,-2532.201305,0.0003013,7]
[424320804,1780768268000,-2532.201305,0.0003013,7]
[424320803,1780768268000,-2532.201305,0.0003013,7]
[424320809,1780768268000,-151.0,0.0003013,7]
[424320805,1780768268000,-342.548366,0.0003013,7]
[424320807,1780768268000,-342.548366,0.0003013,7]
[424320737,1780768268000,-272.85601652,0.0003011,7]
[424320800,1780768268000,-926.031354,0.0003013,7]
[424320776,1780768268000,-192.967881,0.0003013,7]
[424320806,1780768268000,-342.548366,0.0003013,7]
[424320769,1780768268000,-194.712125,0.0003013,7]
[424320778,1780768268000,-433.109753,0.0003013,7]
[424320747,1780768268000,-152349.87279834,0.0003013,2]
[424320740,1780768268000,-151.0,0.00030127,7]
[424320759,1780768268000,-151.0,0.0003013,7]
[424320749,1780768268000,-170.98958184,0.0003013,20]
[424320748,1780768268000,-205.58627698,0.0003013,2]
[424320750,1780768268000,-7705.22989699,0.0003013,14]
[424320758,1780768268000,-151.0,0.0003013,7]
[424320756,1780768268000,-151.0,0.0003013,7]
[424320751,1780768268000,-302.55798069,0.0003013,2]
[424320761,1780768268000,-151.0,0.0003013,7]
[424320753,1780768268000,-1918.28264136,0.0003013,2]
[424320760,1780768268000,-151.0,0.0003013,7]
[424320752,1780768268000,-3821828.73483324,0.0003013,7]
[424320755,1780768268000,-151.0,0.0003013,7]
[424320746,1780768268000,-646.24691465,0.0003013,2]
[424320757,1780768268000,-151.0,0.0003013,7]
[424320768,1780768268000,-175.427895,0.0003013,7]
[424320773,1780768268000,-192.967881,0.0003013,7]
[424320771,1780768268000,-194.712125,0.0003013,7]
[424320774,1780768268000,-192.967881,0.0003013,7]
[424320754,1780768268000,-151.0,0.0003013,7]
[424320770,1780768268000,-194.712125,0.0003013,7]
[424320772,1780768268000,-194.712125,0.0003013,7]
[424320775,1780768268000,-192.967881,0.0003013,7]
[424320764,1780768268000,-286.139361,0.0003013,7]
[424320765,1780768268000,-151.0,0.0003013,7]
[424320766,1780768268000,-151.0,0.0003013,7]
[424320767,1780768268000,-151.0,0.0003013,7]
[424320762,1780768268000,-151.0,0.0003013,7]
[424320763,1780768268000,-151.0,0.0003013,7]
[424320852,1780768269000,-150.0,0.00030137,2]
[424320847,1780768269000,-22720.19,0.00030137,120]
[424320853,1780768269000,-500.0,0.00030137,3]
[424320851,1780768269000,-500.0,0.00030137,3]
[424320854,1780768269000,-500.0,0.00030137,3]
[424320842,1780768269000,-198.20333151,0.00030137,2]
[424320849,1780768269000,-500.0,0.00030137,3]
[424320843,1780768269000,-396.40666302,0.00030137,2]
[424320845,1780768269000,-1014.58,0.00030137,2]
[424320846,1780768269000,-288.38,0.00030137,5]
[424320844,1780768269000,-594.60999453,0.00030137,2]
[424320850,1780768269000,-500.0,0.00030137,3]
[424320848,1780768269000,-500.0,0.00030137,3]
[424320862,1780768269000,-1300.71406073,0.00030137,2]
[424320857,1780768269000,-250.0,0.00030137,2]
[424320867,1780768269000,-939.90693594,0.00030137,120]
[424320865,1780768269000,-317.15389789,0.00030137,2]
[424320858,1780768269000,-500.0,0.00030137,3]
[424320856,1780768269000,-500.0,0.00030137,3]
[424320866,1780768269000,-1128.13871879,0.00030137,120]
[424320863,1780768269000,-929.99999999,0.00030137,120]
[424320864,1780768269000,-350.38,0.00030137,120]
[424320859,1780768269000,-500.0,0.00030137,3]
[424320860,1780768269000,-1413.77247833,0.00030137,120]
[424320861,1780768269000,-500.0,0.00030137,3]
[424320868,1780768269000,-930.4953468,0.00030137,120]
[424320835,1780768269000,-4542.87,0.00030136,30]
[424320855,1780768269000,-151.89843089,0.00030137,5]
[424320832,1780768269000,-151.0,0.0003013,7]
[424320826,1780768269000,-4263.549049,0.0003013,7]
[424320836,1780768269000,-4426.97,0.00030136,30]
[424320870,1780768269000,-930.00123837,0.00030137,120]
[424320814,1780768269000,-617.346821,0.0003013,7]
[424320815,1780768269000,-1094.222631,0.0003013,7]
[424320812,1780768269000,-617.346821,0.0003013,7]
[424320810,1780768269000,-151.0,0.0003013,7]
[424320811,1780768269000,-617.346821,0.0003013,7]
[424320813,1780768269000,-617.346821,0.0003013,7]
[424320816,1780768269000,-1094.222631,0.0003013,7]
[424320817,1780768269000,-199.145761,0.0003013,7]
[424320818,1780768269000,-1094.222631,0.0003013,7]
[424320822,1780768269000,-199.145761,0.0003013,7]
[424320821,1780768269000,-199.145761,0.0003013,7]
[424320827,1780768269000,-1601.735642,0.0003013,3]
[424320833,1780768269000,-1051.11,0.00030133,30]
[424320819,1780768269000,-199.145761,0.0003013,7]
[424320820,1780768269000,-1094.222631,0.0003013,7]
[424320824,1780768269000,-4263.549049,0.0003013,7]
[424320825,1780768269000,-4263.549049,0.0003013,7]
[424320829,1780768269000,-1601.735642,0.0003013,3]
[424320839,1780768269000,-1000.0,0.00030137,120]
[424320840,1780768269000,-2500.0,0.00030137,120]
[424320841,1780768269000,-236.42154102,0.00030137,2]
[424320837,1780768269000,-242.4215479,0.00030136,2]
[424320828,1780768269000,-1601.735642,0.0003013,3]
[424320834,1780768269000,-454.862993,0.00030136,14]
[424320830,1780768269000,-1601.735642,0.0003013,3]
[424320831,1780768269000,-151.0,0.0003013,7]
[424320838,1780768269000,-1252.01,0.00030137,2]
[424320823,1780768269000,-4263.549049,0.0003013,7]
[424320869,1780768269000,-930.02476734,0.00030137,120]
[424320871,1780768269000,-930.00006192,0.00030137,120]
[424320874,1780768269000,-930.0,0.00030137,120]
[424320909,1780768269000,-150.0,0.00030137,2]
[424320916,1780768269000,-150.0,0.00030137,2]
[424320907,1780768269000,-150.0,0.00030137,2]
[424320915,1780768269000,-150.0,0.00030137,2]
[424320908,1780768269000,-150.0,0.00030137,2]
[424320905,1780768269000,-150.0,0.00030137,2]
[424320910,1780768269000,-150.0,0.00030137,2]
[424320913,1780768269000,-150.0,0.00030137,2]
[424320914,1780768269000,-150.0,0.00030137,2]
[424320911,1780768269000,-150.0,0.00030137,2]
[424320912,1780768269000,-150.0,0.00030137,2]
[424320919,1780768269000,-150.0,0.00030137,2]
[424320920,1780768269000,-150.0,0.00030137,2]
[424320921,1780768269000,-150.0,0.00030137,2]
[424320918,1780768269000,-150.0,0.00030137,2]
[424320927,1780768269000,-150.0,0.00030137,2]
[424320928,1780768269000,-150.0,0.00030137,2]
[424320922,1780768269000,-150.0,0.00030137,2]
[424320926,1780768269000,-150.0,0.00030137,2]
[424320923,1780768269000,-150.0,0.00030137,2]
[424320925,1780768269000,-150.0,0.00030137,2]
[424320924,1780768269000,-150.0,0.00030137,2]
[424320930,1780768269000,-150.0,0.00030137,2]
[424320929,1780768269000,-150.0,0.00030137,2]
[424320932,1780768269000,-150.0,0.00030137,2]
[424320931,1780768269000,-150.0,0.00030137,2]
[424320872,1780768269000,-930.0000031,0.00030137,120]
[424320906,1780768269000,-150.0,0.00030137,2]
[424320903,1780768269000,-150.0,0.00030137,2]
[424320917,1780768269000,-150.0,0.00030137,2]
[424320902,1780768269000,-150.0,0.00030137,2]
[424320904,1780768269000,-150.0,0.00030137,2]
[424320875,1780768269000,-332.76234158,0.00030137,30]
[424320876,1780768269000,-369.43,0.00030137,120]
[424320877,1780768269000,-2201.79,0.00030137,2]
[424320878,1780768269000,-1348.96,0.00030137,2]
[424320880,1780768269000,-709.34,0.00030137,2]
[424320890,1780768269000,-150.0,0.00030137,2]
[424320891,1780768269000,-150.0,0.00030137,2]
[424320879,1780768269000,-922.54,0.00030137,2]
[424320882,1780768269000,-2000.0,0.00030137,2]
[424320881,1780768269000,-602.73,0.00030137,2]
[424320884,1780768269000,-200.0,0.00030137,2]
[424320887,1780768269000,-150.0,0.00030137,2]
[424320888,1780768269000,-150.0,0.00030137,2]
[424320873,1780768269000,-930.00000015,0.00030137,120]
[424320883,1780768269000,-200.0,0.00030137,2]
[424320885,1780768269000,-150.0,0.00030137,2]
[424320900,1780768269000,-150.0,0.00030137,2]
[424320893,1780768269000,-150.0,0.00030137,2]
[424320898,1780768269000,-150.0,0.00030137,2]
[424320899,1780768269000,-150.0,0.00030137,2]
[424320897,1780768269000,-150.0,0.00030137,2]
[424320901,1780768269000,-150.0,0.00030137,2]
[424320895,1780768269000,-150.0,0.00030137,2]
[424320894,1780768269000,-150.0,0.00030137,2]
[424320892,1780768269000,-150.0,0.00030137,2]
[424320889,1780768269000,-150.0,0.00030137,2]
[424320886,1780768269000,-150.0,0.00030137,2]
[424320896,1780768269000,-150.0,0.00030137,2]
[424320974,1780768270000,-539.556466,0.000302,2]
[424320972,1780768270000,-15819.26432044,0.000302,2]
[424320981,1780768270000,-173.0,0.00030205,14]
[424320969,1780768270000,-300.0,0.00030137,2]
[424320980,1780768270000,-600.52,0.000302,2]
[424320968,1780768270000,-150.0,0.00030137,2]
[424320971,1780768270000,-1196.77,0.000302,14]
[424320966,1780768270000,-1356.73267512,0.00030137,2]
[424320967,1780768270000,-200.0,0.00030137,2]
[424320962,1780768270000,-14910.11,0.00030137,7]
[424320982,1780768270000,-303.0,0.00030211,7]
[424320979,1780768270000,-600.51,0.000302,2]
[424320970,1780768270000,-1051.11,0.00030167,30]
[424320985,1780768270000,-401.14,0.00030236,30]
[424320978,1780768270000,-403.3,0.000302,2]
[424320977,1780768270000,-847.741481,0.000302,4]
[424320975,1780768270000,-1538.784417,0.000302,3]
[424320976,1780768270000,-1051.11,0.000302,30]
[424320983,1780768270000,-167.0,0.00030235,3]
[424320987,1780768270000,-4581.8,0.00030239,2]
[424320986,1780768270000,-401.15,0.00030236,30]
[424320989,1780768270000,-2968.11,0.00030317,7]
[424320988,1780768270000,-6829.9256791,0.00030252,2]
[424320993,1780768270000,-468.0,0.00030395,30]
[424320991,1780768270000,-179.97120458,0.00030362,2]
[424320984,1780768270000,-401.14,0.00030236,30]
[424320964,1780768270000,-150.0,0.00030137,2]
[424320973,1780768270000,-6744.21738993,0.000302,120]
[424320965,1780768270000,-258.73364705,0.00030137,2]
[424320992,1780768270000,-6829.9256791,0.00030371,2]
[424320960,1780768270000,-150.0,0.00030137,2]
[424320940,1780768270000,-150.0,0.00030137,2]
[424320933,1780768270000,-150.0,0.00030137,2]
[424320937,1780768270000,-150.0,0.00030137,2]
[424320938,1780768270000,-150.0,0.00030137,2]
[424320934,1780768270000,-150.0,0.00030137,2]
[424320936,1780768270000,-150.0,0.00030137,2]
[424320939,1780768270000,-150.0,0.00030137,2]
[424320935,1780768270000,-150.0,0.00030137,2]
[424320941,1780768270000,-150.0,0.00030137,2]
[424320943,1780768270000,-150.0,0.00030137,2]
[424320944,1780768270000,-150.0,0.00030137,2]
[424320945,1780768270000,-150.0,0.00030137,2]
[424320942,1780768270000,-150.0,0.00030137,2]
[424320963,1780768270000,-150.0,0.00030137,2]
[424320946,1780768270000,-150.0,0.00030137,2]
[424320948,1780768270000,-150.0,0.00030137,2]
[424320950,1780768270000,-150.0,0.00030137,2]
[424320947,1780768270000,-150.0,0.00030137,2]
[424320951,1780768270000,-150.0,0.00030137,2]
[424320955,1780768270000,-150.0,0.00030137,2]
[424320954,1780768270000,-150.0,0.00030137,2]
[424320953,1780768270000,-150.0,0.00030137,2]
[424320952,1780768270000,-150.0,0.00030137,2]
[424320956,1780768270000,-150.0,0.00030137,2]
[424320957,1780768270000,-150.0,0.00030137,2]
[424320959,1780768270000,-150.0,0.00030137,2]
[424320958,1780768270000,-150.0,0.00030137,2]
[424320961,1780768270000,-150.0,0.00030137,2]
[424320949,1780768270000,-150.0,0.00030137,2]
[424320990,1780768270000,-759.0,0.00030341,5]
[424321021,1780768270000,-403.4723439,0.00030467,2]
[424320996,1780768270000,-2972.0,0.00030395,30]
[424321025,1780768270000,-315.69646608,0.00030467,2]
[424321038,1780768270000,-169.04721995,0.00030467,2]
[424321029,1780768270000,-635.80447197,0.00030467,2]
[424321035,1780768270000,-606.93795554,0.00030467,2]
[424321027,1780768270000,-421.78082475,0.00030467,2]
[424321032,1780768270000,-416.15364245,0.00030467,2]
[424321028,1780768270000,-731.37523267,0.00030467,2]
[424321033,1780768270000,-485.16113149,0.00030467,2]
[424321034,1780768270000,-170.97405169,0.00030467,2]
[424321030,1780768270000,-1946.63751556,0.00030467,2]
[424321031,1780768270000,-466.75281567,0.00030467,2]
[424321039,1780768270000,-1121.58798362,0.00030467,2]
[424321041,1780768270000,-212.99678188,0.00030467,2]
[424321042,1780768270000,-168.46234524,0.00030467,2]
[424321048,1780768270000,-346.99088569,0.00030467,2]
[424321049,1780768270000,-674.50039185,0.00030467,2]
[424321040,1780768270000,-537.83831172,0.00030467,2]
[424321043,1780768270000,-757.71633684,0.00030467,2]
[424321044,1780768270000,-165.14091316,0.00030467,2]
[424321050,1780768270000,-384.91173698,0.00030467,2]
[424321047,1780768270000,-1165.23007862,0.00030467,2]
[424321045,1780768270000,-164.60051743,0.00030467,2]
[424321051,1780768270000,-695.2887175,0.00030467,2]
[424321046,1780768270000,-826.25290327,0.00030467,2]
[424321053,1780768270000,-619.61859237,0.00030467,2]
[424321052,1780768270000,-546.05237426,0.00030467,2]
[424320995,1780768270000,-675.0,0.00030395,30]
[424321036,1780768270000,-1665.48184955,0.00030467,2]
[424321037,1780768270000,-375.15253989,0.00030467,2]
[424321054,1780768270000,-178.30960949,0.00030467,2]
[424321024,1780768270000,-492.08932387,0.00030467,2]
[424320994,1780768270000,-1092.0,0.00030395,30]
[424320998,1780768270000,-948.0,0.00030397,30]
[424321008,1780768270000,-1242.75059618,0.00030411,2]
[424320999,1780768270000,-585.0,0.00030397,30]
[424321002,1780768270000,-800.0,0.00030397,30]
[424321009,1780768270000,-200.0,0.00030438,2]
[424321000,1780768270000,-4082.0,0.00030397,30]
[424321007,1780768270000,-182.9,0.00030411,120]
[424321026,1780768270000,-160.67006026,0.00030467,2]
[424321010,1780768270000,-200.0,0.00030438,2]
[424321006,1780768270000,-408.0,0.00030397,30]
[424321001,1780768270000,-706.0,0.00030397,30]
[424320997,1780768270000,-4110.0,0.00030397,30]
[424321004,1780768270000,-801.0,0.00030397,30]
[424321003,1780768270000,-4288.0,0.00030397,30]
[424321013,1780768270000,-1688.37,0.00030453,7]
[424321020,1780768270000,-571.41027411,0.00030467,2]
[424321005,1780768270000,-1747.0,0.00030397,30]
[424321055,1780768270000,-450.70730865,0.00030467,2]
[424321012,1780768270000,-1180.22,0.00030453,7]
[424321022,1780768270000,-1829.88860117,0.00030467,2]
[424321023,1780768270000,-165.72187986,0.00030467,2]
[424321019,1780768270000,-414.69461133,0.00030467,2]
[424321018,1780768270000,-2088.61257336,0.00030467,2]
[424321016,1780768270000,-160.45104451,0.00030467,2]
[424321015,1780768270000,-491.62402446,0.00030467,2]
[424321014,1780768270000,-1066.48,0.00030453,7]
[424321011,1780768270000,-200.0,0.00030438,2]
[424321017,1780768270000,-160.0523769,0.00030467,2]
[424321095,1780768271000,-637.32692023,0.0003047,2]
[424321100,1780768271000,-623.98234023,0.0003047,2]
[424321102,1780768271000,-724.90904175,0.00030473,2]
[424321103,1780768271000,-6829.9256791,0.00030476,2]
[424321094,1780768271000,-647.3679293,0.0003047,2]
[424321082,1780768271000,-443.0997574,0.00030467,2]
[424321089,1780768271000,-213.42323793,0.00030467,2]
[424321087,1780768271000,-630.07628039,0.00030467,2]
[424321084,1780768271000,-341.26595142,0.00030467,2]
[424321086,1780768271000,-195.69284609,0.00030467,2]
[424321093,1780768271000,-464.2251992,0.0003047,2]
[424321105,1780768271000,-216219.17929779,0.0003049,7]
[424321114,1780768271000,-229.75231167,0.00030513,2]
[424321097,1780768271000,-600.29108863,0.0003047,2]
[424321101,1780768271000,-565.66260107,0.0003047,2]
[424321099,1780768271000,-268.41921305,0.0003047,2]
[424321098,1780768271000,-778.23647937,0.0003047,2]
[424321096,1780768271000,-349.36028593,0.0003047,2]
[424321107,1780768271000,-166.68393471,0.0003051,2]
[424321117,1780768271000,-618.03769829,0.00030513,2]
[424321106,1780768271000,-207259.94279063,0.0003049,7]
[424321116,1780768271000,-689.44557691,0.00030513,2]
[424321108,1780768271000,-162.15616205,0.0003051,2]
[424321110,1780768271000,-169.25030069,0.0003051,2]
[424321109,1780768271000,-783.02283785,0.0003051,2]
[424321092,1780768271000,-160.55911995,0.0003047,2]
[424321104,1780768271000,-151.0,0.00030487,7]
[424321081,1780768271000,-629.79497255,0.00030467,2]
[424321067,1780768271000,-168.98283828,0.00030467,2]
[424321088,1780768271000,-598.11840135,0.00030467,2]
[424321112,1780768271000,-165.4131047,0.00030513,2]
[424321062,1780768271000,-742.82060264,0.00030467,2]
[424321061,1780768271000,-563.46933561,0.00030467,2]
[424321063,1780768271000,-723.21284892,0.00030467,2]
[424321064,1780768271000,-169.02355587,0.00030467,2]
[424321057,1780768271000,-330.18913245,0.00030467,2]
[424321060,1780768271000,-411.96414744,0.00030467,2]
[424321059,1780768271000,-161.71780045,0.00030467,2]
[424321058,1780768271000,-160.93632549,0.00030467,2]
[424321056,1780768271000,-527.3441939,0.00030467,2]
[424321074,1780768271000,-808.42038081,0.00030467,2]
[424321075,1780768271000,-614.54747112,0.00030467,2]
[424321071,1780768271000,-531.04960215,0.00030467,2]
[424321072,1780768271000,-170.32151872,0.00030467,2]
[424321065,1780768271000,-792.81332604,0.00030467,2]
[424321069,1780768271000,-568.70035154,0.00030467,2]
[424321077,1780768271000,-712.88008676,0.00030467,2]
[424321068,1780768271000,-590.61351801,0.00030467,2]
[424321076,1780768271000,-669.54204606,0.00030467,2]
[424321070,1780768271000,-168.1029797,0.00030467,2]
[424321073,1780768271000,-696.35210825,0.00030467,2]
[424321078,1780768271000,-653.04081692,0.00030467,2]
[424321080,1780768271000,-673.37394479,0.00030467,2]
[424321091,1780768271000,-528.85637918,0.00030467,2]
[424321085,1780768271000,-310.69195422,0.00030467,2]
[424321090,1780768271000,-658.24549617,0.00030467,2]
[424321079,1780768271000,-615.66620615,0.00030467,2]
[424321083,1780768271000,-702.05343602,0.00030467,2]
[424321111,1780768271000,-745.6753721,0.00030513,2]
[424321066,1780768271000,-1018.93119763,0.00030467,2]
[424321115,1780768271000,-709.21039129,0.00030513,2]
[424321147,1780768271000,-762.73194114,0.00030622,2]
[424321150,1780768271000,-423.69628481,0.00030622,2]
[424321152,1780768271000,-163.58053945,0.00030622,2]
[424321154,1780768271000,-497.05261705,0.00030628,2]
[424321155,1780768271000,-626.63579242,0.00030628,2]
[424321157,1780768271000,-2000.0,0.0003069,7]
[424321153,1780768271000,-712.57477711,0.00030622,2]
[424321161,1780768271000,-200.0,0.00030743,2]
[424321159,1780768271000,-369.43,0.00030712,120]
[424321160,1780768271000,-6829.9256791,0.00030738,2]
[424321158,1780768271000,-179.97120458,0.00030709,2]
[424321176,1780768271000,-1732.82,0.00030954,2]
[424321162,1780768271000,-200.0,0.00030743,2]
[424321156,1780768271000,-6829.9256791,0.00030657,2]
[424321164,1780768271000,-500.0,0.00030796,2]
[424321165,1780768271000,-6829.9256791,0.00030814,2]
[424321174,1780768271000,-6829.9256791,0.00030886,2]
[424321163,1780768271000,-200.0,0.00030743,2]
[424321168,1780768271000,-150.0,0.00030875,2]
[424321113,1780768271000,-343.35612712,0.00030513,2]
[424321167,1780768271000,-1638.83403648,0.0003084,2]
[424321173,1780768271000,-164.0,0.00030875,3]
[424321170,1780768271000,-150.0,0.00030875,2]
[424321171,1780768271000,-186.35577983,0.00030875,2]
[424321169,1780768271000,-150.0,0.00030875,2]
[424321172,1780768271000,-759.0,0.00030875,6]
[424321175,1780768271000,-204.69,0.00030904,4]
[424321148,1780768271000,-806.10373836,0.00030622,2]
[424321149,1780768271000,-698.99523732,0.00030622,2]
[424321166,1780768271000,-350.38,0.00030822,120]
[424321146,1780768271000,-858.50629915,0.00030622,2]
[424321151,1780768271000,-751.8996402,0.00030622,2]
[424321118,1780768271000,-173.35690422,0.00030513,2]
[424321120,1780768271000,-825.3255014,0.00030513,2]
[424321122,1780768271000,-652.80633941,0.00030513,2]
[424321119,1780768271000,-675.72266809,0.00030513,2]
[424321125,1780768271000,-166.49448706,0.00030513,2]
[424321124,1780768271000,-597.35526907,0.00030513,2]
[424321129,1780768271000,-665.13310469,0.00030513,2]
[424321123,1780768271000,-165.23833641,0.00030513,2]
[424321128,1780768271000,-649.4332512,0.00030513,2]
[424321130,1780768271000,-646.24939996,0.00030513,2]
[424321127,1780768271000,-164.31300598,0.00030513,2]
[424321126,1780768271000,-418.01170604,0.00030513,2]
[424321132,1780768271000,-693.12683592,0.00030513,2]
[424321121,1780768271000,-641.66373643,0.00030513,2]
[424321131,1780768271000,-746.79629003,0.00030513,2]
[424321134,1780768271000,-725.45421379,0.00030513,2]
[424321145,1780768271000,-671.54710687,0.00030622,2]
[424321143,1780768271000,-695.31267692,0.00030622,2]
[424321142,1780768271000,-477.40943752,0.00030622,2]
[424321141,1780768271000,-487.18576966,0.00030622,2]
[424321136,1780768271000,-658.57798811,0.00030513,2]
[424321144,1780768271000,-641.64362037,0.00030622,2]
[424321137,1780768271000,-689.96643111,0.00030513,2]
[424321139,1780768271000,-785.69362434,0.00030622,2]
[424321138,1780768271000,-6829.9256791,0.0003057,2]
[424321133,1780768271000,-706.97451475,0.00030513,2]
[424321135,1780768271000,-702.22454925,0.00030513,2]
[424321140,1780768271000,-868.94110044,0.00030622,2]
[424321203,1780768272000,-843.12548981,0.00031047,2]
[424321210,1780768272000,-768.1843389,0.00031047,2]
[424321201,1780768272000,-1032.81612908,0.00031047,2]
[424321202,1780768272000,-1456.53759827,0.00031047,2]
[424321207,1780768272000,-870.44013531,0.00031047,2]
[424321204,1780768272000,-869.11089687,0.00031047,2]
[424321209,1780768272000,-1007.62967295,0.00031047,2]
[424321206,1780768272000,-1273.66399704,0.00031047,2]
[424321205,1780768272000,-991.01665755,0.00031047,2]
[424321214,1780768272000,-941.67369761,0.00031047,2]
[424321212,1780768272000,-815.2115649,0.00031047,2]
[424321213,1780768272000,-787.24371569,0.00031047,2]
[424321215,1780768272000,-890.71847138,0.00031047,2]
[424321224,1780768272000,-750.36386079,0.0003105,2]
[424321216,1780768272000,-877.56679502,0.00031047,2]
[424321220,1780768272000,-200.0,0.0003105,2]
[424321218,1780768272000,-822.80687022,0.00031047,2]
[424321219,1780768272000,-200.0,0.0003105,2]
[424321211,1780768272000,-816.30102115,0.00031047,2]
[424321208,1780768272000,-1010.52547601,0.00031047,2]
[424321200,1780768272000,-947.14542106,0.00031047,2]
[424321182,1780768272000,-167.90310605,0.00031,14]
[424321197,1780768272000,-758.67244443,0.00031047,2]
[424321185,1780768272000,-156.5,0.00031,30]
[424321177,1780768272000,-6829.9256791,0.00030955,2]
[424321179,1780768272000,-5000.0,0.00031,30]
[424321178,1780768272000,-1553.43824523,0.0003099,2]
[424321180,1780768272000,-351.15597705,0.00031,5]
[424321186,1780768272000,-1091.62721815,0.00031,7]
[424321181,1780768272000,-4783.00363212,0.00031,2]
[424321184,1780768272000,-4658.84,0.00031,7]
[424321183,1780768272000,-684.55,0.00031,2]
[424321196,1780768272000,-2081.85231194,0.00031047,2]
[424321188,1780768272000,-6829.9256791,0.0003102,2]
[424321189,1780768272000,-250.0,0.00031035,7]
[424321187,1780768272000,-150.0,0.00031011,2]
[424321198,1780768272000,-788.65186868,0.00031047,2]
[424321190,1780768272000,-250.0,0.00031035,7]
[424321194,1780768272000,-2287.36075146,0.00031047,2]
[424321192,1780768272000,-250.0,0.00031035,7]
[424321191,1780768272000,-250.0,0.00031035,7]
[424321195,1780768272000,-2433.29689445,0.00031047,2]
[424321193,1780768272000,-2610.7657167,0.00031047,2]
[424321199,1780768272000,-1401.98497953,0.00031047,2]
[424321225,1780768272000,-972.79559922,0.0003105,2]
[424321221,1780768272000,-200.0,0.0003105,2]
[424321222,1780768272000,-937.04513354,0.0003105,2]
[424321255,1780768272000,-802.05452546,0.00031205,2]
[424321254,1780768272000,-1086.17637555,0.00031205,2]
[424321245,1780768272000,-2322.0,0.00031144,3]
[424321247,1780768272000,-164.0,0.00031195,3]
[424321249,1780768272000,-965.695377,0.000312,4]
[424321250,1780768272000,-213.391202,0.000312,4]
[424321248,1780768272000,-201.928287,0.000312,4]
[424321257,1780768272000,-873.74404665,0.00031205,2]
[424321258,1780768272000,-939.87455025,0.00031205,2]
[424321259,1780768272000,-783.29474053,0.00031211,2]
[424321266,1780768272000,-6829.9256791,0.00031312,2]
[424321260,1780768272000,-6829.9256791,0.00031258,2]
[424321256,1780768272000,-953.41492642,0.00031205,2]
[424321264,1780768272000,-2329.0,0.00031294,7]
[424321261,1780768272000,-376.76,0.00031279,5]
[424321262,1780768272000,-350.38,0.00031288,120]
[424321263,1780768272000,-369.44,0.00031288,120]
[424321267,1780768272000,-200.0,0.00031361,2]
[424321217,1780768272000,-870.1184311,0.00031047,2]
[424321252,1780768272000,-303.068906,0.000312,4]
[424321253,1780768272000,-6829.9256791,0.00031201,2]
[424321265,1780768272000,-607.54,0.000313,30]
[424321246,1780768272000,-164.0,0.00031144,3]
[424321223,1780768272000,-796.65865029,0.0003105,2]
[424321251,1780768272000,-1000.0,0.000312,7]
[424321226,1780768272000,-906.13630219,0.00031053,2]
[424321229,1780768272000,-886.51298912,0.00031094,2]
[424321234,1780768272000,-802.07967054,0.00031094,2]
[424321228,1780768272000,-6829.9256791,0.00031083,2]
[424321236,1780768272000,-811.791564,0.00031094,2]
[424321237,1780768272000,-831.41638086,0.00031094,2]
[424321232,1780768272000,-844.65333511,0.00031094,2]
[424321235,1780768272000,-816.00792426,0.00031094,2]